lending/lending_fUSD_20240112
["ID","MTS","AMOUNT","RATE_DAILY","PERIOD"]
[311396195,1705077043901,-500.0,0.00022512,2]
[311396197,1705077043910,-500.0,0.00022512,2]
[311396199,1705077043919,-500.0,0.00022512,2]
[311396201,1705077043928,-500.0,0.00022512,2]
[311396203,1705077043937,-500.0,0.00022512,2]
[311396205,1705077043946,-500.0,0.00022512,2]
[311396207,1705077043955,-500.0,0.00022512,2]
[311396209,1705077043964,-500.0,0.00022512,2]
[311396211,1705077043973,-500.0,0.00022512,2]
[311396213,1705077043982,-500.0,0.00022512,2]
[311396215,1705077043991,-156.23001202,0.00022512,2]
[311396217,1705077044000,-500.0,0.00022512,2]
[311396219,1705077044009,-758.57,0.00022512,2]
[311396221,1705077044018,-500.0,0.00022512,2]
[311396223,1705077044027,-747.06,0.00022512,2]
[311396225,1705077044036,-500.0,0.00022512,2]
[311396227,1705077044045,-500.0,0.00022512,2]
[311396229,1705077044055,-500.0,0.00022512,2]
[311396231,1705077044064,-507.2489981,0.00022512,2]
[311396233,1705077044073,-500.0,0.00022512,2]
[311396235,1705077044082,-500.0,0.00022512,2]
[311396237,1705077044091,-515.76938335,0.00022512,2]
[311396239,1705077044101,-500.0,0.00022512,2]
[311396241,1705077044110,-500.0,0.00022512,2]
[311396243,1705077044120,-500.0,0.00022512,2]
[311396245,1705077044129,-500.0,0.00022512,2]
[311396247,1705077044140,-500.0,0.00022512,2]
[311396249,1705077044149,-500.0,0.00022512,2]
[311396251,1705077044158,-500.0,0.00022512,2]
[311396253,1705077044169,-500.0,0.00022512,2]
[311396255,1705077044178,-500.0,0.00022512,2]
[311396257,1705077044187,-500.0,0.00022512,2]
[311396259,1705077044196,-500.0,0.00022512,2]
[311396261,1705077044206,-500.0,0.00022512,2]
[311396263,1705077044215,-500.0,0.00022512,2]
[311396265,1705077044225,-500.0,0.00022512,2]
[311396267,1705077044234,-500.0,0.00022512,2]
[311396269,1705077044243,-500.0,0.00022512,2]
[311396271,1705077044252,-500.0,0.00022512,2]
[311396273,1705077044261,-500.0,0.00022512,2]
[311396275,1705077044270,-500.0,0.00022512,2]
[311396276,1705077044280,-500.0,0.00022512,2]
[311396278,1705077044290,-500.0,0.00022512,2]
[311396280,1705077044299,-500.0,0.00022512,2]
[311396281,1705077044309,-500.0,0.00022512,2]
[311396283,1705077044318,-500.0,0.00022512,2]
[311396285,1705077044327,-500.0,0.00022512,2]
[311396287,1705077044337,-500.0,0.00022512,2]
[311396289,1705077044346,-1049.62,0.00022512,2]
[311396290,1705077044355,-500.0,0.00022512,2]
[311396292,1705077044364,-500.0,0.00022512,2]
[311396294,1705077044373,-500.0,0.00022512,2]
[311396295,1705077044382,-500.0,0.00022512,2]
[311396297,1705077044393,-500.0,0.00022512,2]
[311396299,1705077044402,-500.0,0.00022512,2]
[311396301,1705077044411,-500.0,0.00022512,2]
[311396302,1705077044420,-500.0,0.00022512,2]
[311396304,1705077044430,-500.0,0.00022512,2]
[311396306,1705077044439,-500.0,0.00022512,2]
[311396308,1705077044448,-500.0,0.00022512,2]
[311396310,1705077044458,-500.0,0.00022512,2]
[311396311,1705077044467,-500.0,0.00022512,2]
[311396313,1705077044477,-500.0,0.00022512,2]
[311396315,1705077044491,-500.0,0.00022512,2]
[311396317,1705077044500,-500.0,0.00022512,2]
[311396319,1705077044509,-500.0,0.00022512,2]
[311396320,1705077044518,-500.0,0.00022512,2]
[311396322,1705077044528,-500.0,0.00022512,2]
[311396324,1705077044537,-500.0,0.00022512,2]
[311396326,1705077044547,-500.0,0.00022512,2]
[311396328,1705077044556,-500.0,0.00022512,2]
[311396329,1705077044567,-384.82277,0.00022512,2]
[311396331,1705077044576,-537.14118126,0.00022512,2]
[311396333,1705077044586,-500.0,0.00022512,2]
[311396335,1705077044594,-500.0,0.00022512,2]
[311396336,1705077044603,-500.0,0.00022512,2]
[311396338,1705077044613,-500.0,0.00022512,2]
[311396340,1705077044622,-500.0,0.00022512,2]
[311396342,1705077044631,-500.0,0.00022512,2]
[311396344,1705077044642,-500.0,0.00022512,2]
[311396345,1705077044651,-500.0,0.00022512,2]
[311396347,1705077044660,-500.0,0.00022512,2]
[311396349,1705077044669,-500.0,0.00022512,2]
[311396350,1705077044677,-500.0,0.00022512,2]
[311396352,1705077044686,-500.0,0.00022512,2]
[311396354,1705077044695,-1085.86,0.00022512,2]
[311396356,1705077044704,-500.0,0.00022512,2]
[311396358,1705077044713,-500.0,0.00022512,2]
[311396360,1705077044723,-500.0,0.00022512,2]
[311396361,1705077044732,-500.0,0.00022512,2]
[311396363,1705077044741,-767.7,0.00022512,2]
[311396365,1705077044750,-195.67032854,0.00022512,2]
[311396367,1705077044761,-500.0,0.00022512,2]
[311396383,1705077044917,-500.0,0.00022512,2]
[311396385,1705077044926,-515.51,0.00022512,2]
[311396386,1705077044935,-500.0,0.00022512,2]
[311396388,1705077044944,-500.0,0.00022512,2]
[311396390,1705077044953,-500.0,0.00022512,2]
[311396392,1705077044962,-500.0,0.00022512,2]
[311396394,1705077044972,-500.0,0.00022512,2]
[311396396,1705077044981,-500.0,0.00022512,2]
[311396398,1705077044990,-500.0,0.00022512,2]
[311396400,1705077044999,-500.0,0.00022512,2]
[311396401,1705077045008,-500.0,0.00022512,2]
[311396403,1705077045017,-500.0,0.00022512,2]
[311396405,1705077045027,-500.0,0.00022512,2]
[311396407,1705077045036,-593.95,0.00022512,2]
[311396409,1705077045045,-500.0,0.00022512,2]
[311396411,1705077045054,-500.0,0.00022512,2]
[311396413,1705077045063,-500.0,0.00022512,2]
[311396414,1705077045073,-500.0,0.00022512,2]
[311396416,1705077045082,-500.0,0.00022512,2]
[311396418,1705077045091,-678.28,0.00022512,2]
[311396420,1705077045100,-500.0,0.00022512,2]
[311396422,1705077045110,-500.0,0.00022512,2]
[311396424,1705077045119,-500.0,0.00022512,2]
[311396426,1705077045128,-500.0,0.00022512,2]
[311396427,1705077045139,-3039.1,0.00022512,2]
[311396429,1705077045148,-500.0,0.00022512,2]
[311396431,1705077045157,-500.0,0.00022512,2]
[311396433,1705077045166,-500.0,0.00022512,2]
[311396435,1705077045174,-500.0,0.00022512,2]
[311396437,1705077045184,-676.63,0.00022512,2]
[311396439,1705077045193,-500.0,0.00022512,2]
[311396440,1705077045202,-500.0,0.00022512,2]
[311396442,1705077045211,-500.0,0.00022512,2]
[311396445,1705077045220,-530.51637986,0.00022512,2]
[311396448,1705077045230,-500.0,0.00022512,2]
[311396450,1705077045239,-315.81002878,0.00022512,2]
[311396452,1705077045248,-500.0,0.00022512,2]
[311396453,1705077045257,-500.0,0.00022512,2]
[311396455,1705077045266,-500.0,0.00022512,2]
[311396457,1705077045276,-500.0,0.00022512,2]
[311396460,1705077045285,-500.0,0.00022512,2]
[311396462,1705077045294,-500.0,0.00022512,2]
[311396465,1705077045303,-500.0,0.00022512,2]
[311396467,1705077045312,-500.0,0.00022512,2]
[311396469,1705077045321,-500.0,0.00022512,2]
[311396471,1705077045331,-500.0,0.00022512,2]
[311396473,1705077045340,-500.0,0.00022512,2]
[311396474,1705077045349,-158.73908446,0.00022512,2]
[311396476,1705077045358,-500.0,0.00022512,2]
[311396477,1705077045368,-500.0,0.00022512,2]
[311396478,1705077045377,-500.0,0.00022512,2]
[311396479,1705077045388,-500.0,0.00022512,2]
[311396480,1705077045397,-500.0,0.00022512,2]
[311396481,1705077045408,-500.0,0.00022512,2]
[311396482,1705077045418,-902.95,0.00022512,2]
[311396483,1705077045427,-500.0,0.00022512,2]
[311396485,1705077045436,-500.0,0.00022512,2]
[311396487,1705077045446,-500.0,0.00022512,2]
[311396489,1705077045456,-500.0,0.00022512,2]
[311396491,1705077045465,-500.0,0.00022512,2]
[311396494,1705077045475,-500.0,0.00022512,2]
[311396497,1705077045489,-500.0,0.00022512,2]
[311396500,1705077045498,-500.0,0.00022512,2]
[311396503,1705077045508,-500.0,0.00022512,2]
[311396506,1705077045517,-500.0,0.00022512,2]
[311396509,1705077045526,-500.0,0.00022512,2]
[311396512,1705077045535,-500.0,0.00022512,2]
[311396514,1705077045545,-500.0,0.00022512,2]
[311396517,1705077045554,-500.0,0.00022512,2]
[311396520,1705077045564,-500.0,0.00022512,2]
[311396523,1705077045574,-500.0,0.00022512,2]
[311396526,1705077045583,-500.0,0.00022512,2]
[311396529,1705077045593,-500.0,0.00022512,2]
[311396532,1705077045602,-500.0,0.00022512,2]
[311396535,1705077045611,-500.0,0.00022512,2]
[311396538,1705077045621,-992.11,0.00022512,2]
[311396541,1705077045631,-245.35527217,0.00022512,2]
[311396544,1705077045640,-500.0,0.00022512,2]
[311396547,1705077045649,-500.0,0.00022512,2]
[311396550,1705077045658,-605.4,0.00022512,2]
[311396553,1705077045667,-500.0,0.00022512,2]
[311396556,1705077045676,-500.0,0.00022512,2]
[311396559,1705077045686,-500.0,0.00022512,2]
[311396561,1705077045695,-500.0,0.00022512,2]
[311396563,1705077045704,-500.0,0.00022512,2]
[311396565,1705077045713,-445.4206063,0.00022513,2]
[311396567,1705077045722,-155.46614533,0.00022513,2]
[311396569,1705077045732,-2317.09975572,0.00022513,2]
[311396571,1705077045741,-258.03530166,0.00022513,2]
[311396573,1705077045751,-225.24224803,0.00022513,2]
[311396575,1705077045761,-173.09804103,0.00022513,2]
[311396577,1705077045770,-403.67230355,0.00022513,2]
[311396579,1705077045779,-2140.09985835,0.00022513,2]
[311396581,1705077045788,-2785.98594041,0.00022513,2]
[311396583,1705077045797,-529.88103403,0.00022513,2]
[311396586,1705077045807,-232.92375042,0.00022513,2]
[311396587,1705077045817,-682.25811455,0.00022513,2]
[311396590,1705077045826,-1427.40182184,0.00022513,2]
[311396592,1705077045836,-155.0,0.00022513,2]
[311396594,1705077045845,-157.91783663,0.00022513,2]
[311396596,1705077045854,-1438.26,0.00022513,2]
[311396598,1705077045864,-155.0,0.00022513,2]
[311396600,1705077045874,-378.2156203,0.00022513,2]
[311396602,1705077045883,-500.0,0.00022513,2]
[311396604,1705077045894,-500.0,0.00022513,2]
[311396606,1705077045904,-500.0,0.00022514,2]
[311396608,1705077045912,-500.0,0.00022514,2]
[311396610,1705077045922,-544.02,0.00022516,2]
[311396612,1705077045931,-500.0,0.00022516,2]
[311396614,1705077045940,-166.09421541,0.00022526,2]
[311396616,1705077045949,-189.03,0.00022532,2]
[311396618,1705077045959,-1050.52164541,0.00022574,2]
[311396620,1705077045968,-166.09421541,0.00022588,2]
[311396622,1705077045978,-189.03,0.00022592,2]
[311396624,1705077045988,-326.59887864,0.00022604,2]
[311396626,1705077045997,-150.0,0.00022604,2]
[311396628,1705077046006,-153.88,0.00022609,2]
[311396630,1705077046015,-290.28162874,0.0002261,2]
[311396632,1705077046025,-780.8182327,0.00022613,2]
[311396634,1705077046035,-195.22,0.0002262,2]
[311396636,1705077046044,-150.0,0.0002263,2]
[311396638,1705077046053,-150.4,0.00022639,2]
[311396640,1705077046062,-150.46768086,0.0002264,2]
[311396642,1705077046071,-150.0,0.00022641,2]
[311396644,1705077046080,-166.09421541,0.00022651,2]
[311396646,1705077046089,-189.03,0.00022651,2]
[311396648,1705077046098,-167.12788371,0.00022684,2]
[311396650,1705077046108,-1991.88873786,0.000227,2]
[311396652,1705077046117,-189.03,0.00022711,2]
[311396654,1705077046126,-166.09421541,0.00022713,2]
[311396656,1705077046136,-1569.66969928,0.00022716,2]
[311396658,1705077046148,-150.0,0.00022733,2]
[311396660,1705077046158,-195.22,0.00022735,2]
[311396662,1705077046167,-167.12788367,0.00022738,2]
[311396664,1705077046176,-500.0,0.00022738,2]
[311396666,1705077046185,-150.0,0.00022744,2]
[311396667,1705077046194,-151.18818117,0.00022765,2]
[311396668,1705077046203,-150.3425,0.0002277,2]
[311396669,1705077046212,-151.9643,0.0002277,2]
[311396670,1705077046220,-189.03,0.0002277,2]
[311396671,1705077046229,-166.09421541,0.00022775,2]
[311396672,1705077046238,-500.0,0.00022779,2]
[311396673,1705077046247,-500.0,0.00022779,2]
[311396674,1705077046256,-500.0,0.00022779,2]
[311396675,1705077046266,-500.0,0.00022779,2]
[311396676,1705077046275,-500.0,0.00022779,2]
[311396677,1705077046284,-500.0,0.00022779,2]
[311396678,1705077046293,-625.39,0.00022779,2]
[311396679,1705077046303,-444.36883911,0.00022779,2]
[311396680,1705077046312,-500.0,0.00022779,2]
[311396681,1705077046322,-7709.60932845,0.0002278,2]
[311396682,1705077046331,-1429.49,0.0002278,2]
[311396683,1705077046340,-2479.46871654,0.0002278,2]
[311396714,1705077047060,-907.94,0.00022506,2]
[311396715,1705077047072,-289.63310857,0.00022506,2]
[311396716,1705077047084,-112.30689143,0.00022506,2]
[311396717,1705077047093,-1965.28351988,0.0002278,2]
[311396823,1705077048255,-500.0,0.00022505,2]
[311396825,1705077048264,-500.0,0.00022505,2]
[311396827,1705077048274,-500.0,0.00022505,2]
[311396829,1705077048284,-500.0,0.00022506,2]
[311396831,1705077048293,-400.08,0.00022507,2]
[311396833,1705077048302,-500.0,0.0002251,2]
[311396834,1705077048311,-500.0,0.00022511,2]
[311396836,1705077048322,-500.0,0.00022511,2]
[311396838,1705077048332,-500.0,0.00022511,2]
[311396841,1705077048342,-500.0,0.00022512,2]
[311396843,1705077048351,-500.0,0.00022512,2]
[311396845,1705077048361,-1120.68099406,0.00022548,2]
[311396846,1705077048370,-500.0,0.00022779,2]
[311396848,1705077048380,-5500.34776358,0.0002278,2]
[311396851,1705077048393,-978.78,0.0002278,2]
[311396852,1705077048402,-1378.24,0.0002278,2]
[311396854,1705077048412,-867.37,0.0002278,2]
[311396856,1705077048422,-576.62,0.0002278,2]
[311396858,1705077048432,-1895.37,0.0002278,2]
[311396860,1705077048441,-741.66,0.0002278,2]
[311396862,1705077048450,-594.56,0.0002278,2]
[311396864,1705077048461,-28063.97,0.0002278,2]
[311396867,1705077048471,-500.0,0.0002278,2]
[311396869,1705077048486,-1179.37,0.0002278,2]
[311396871,1705077048496,-1161.83,0.0002278,2]
[311396872,1705077048505,-16126.91,0.0002278,2]
[311396875,1705077048515,-5776.69,0.0002278,2]
[311396877,1705077048526,-854.65,0.0002278,2]
[311396878,1705077048536,-788.93,0.0002278,2]
[311396880,1705077048545,-500.0,0.0002278,2]
[311396882,1705077048555,-500.0,0.0002278,2]
[311396885,1705077048567,-846.93,0.0002278,2]
[311396887,1705077048577,-500.0,0.0002278,2]
[311396888,1705077048587,-2347.67,0.0002278,2]
[311396891,1705077048596,-944.74,0.0002278,2]
[311396892,1705077048605,-154.60124236,0.0002278,2]
[311396895,1705077048617,-383.423824,0.0002278,2]
[311396897,1705077048629,-18.63493364,0.0002278,2]
[311396899,1705077048638,-915.17,0.0002278,2]
[311396901,1705077048652,-801.65,0.0002278,2]
[311396903,1705077048661,-11316.9,0.0002278,2]
[311396905,1705077048670,-1188.34,0.0002278,2]
[311396907,1705077048680,-1285.67,0.0002278,2]
[311396909,1705077048689,-520.06,0.0002278,2]
[311396911,1705077048701,-500.0,0.0002278,2]
[311396913,1705077048714,-1592.48,0.0002278,2]
[311396915,1705077048724,-575.88,0.0002278,2]
[311396917,1705077048734,-1869.56,0.0002278,2]
[311396919,1705077048745,-1025.29,0.0002278,2]
[311396921,1705077048754,-765.07,0.0002278,2]
[311396923,1705077048764,-1932.17,0.0002278,2]
[311396925,1705077048774,-500.0,0.0002278,2]
[311396927,1705077048783,-500.0,0.0002278,2]
[311396945,1705077048921,-825.06,0.0002278,2]
[311396948,1705077048955,-1309.88,0.0002278,2]
[311396950,1705077048965,-500.0,0.00022782,2]
[311396952,1705077048979,-1331.39,0.00022782,2]
[311396954,1705077048988,-1601.07,0.00022782,2]
[311396956,1705077048998,-1448.76,0.00022782,5]
[311396958,1705077049007,-553.23,0.00022782,2]
[311396960,1705077049016,-6027.14,0.00022782,2]
[311396962,1705077049025,-6680.33087915,0.00022782,2]
[311396966,1705077049052,-274.242,0.0002251,2]
[311396970,1705077049081,-225.758,0.0002251,2]
[311396972,1705077049091,-1376.88912085,0.00022782,2]
[311396974,1705077049101,-2024.92,0.00022782,2]
[311396976,1705077049110,-839.27,0.00022782,2]
[311396978,1705077049119,-1398.26,0.00022782,2]
[311396981,1705077049131,-4395.36,0.00022782,2]
[311396983,1705077049141,-791.14,0.00022782,2]
[311396985,1705077049150,-500.0,0.00022783,2]
[311396987,1705077049159,-976.62,0.00022783,2]
[311396989,1705077049169,-500.0,0.00022783,2]
[311396991,1705077049178,-937.67,0.00022783,2]
[311396993,1705077049187,-500.0,0.00022783,2]
[311396995,1705077049196,-500.0,0.00022783,2]
[311396997,1705077049206,-500.0,0.00022783,2]
[311396999,1705077049215,-500.0,0.00022783,2]
[311397001,1705077049224,-500.0,0.00022783,2]
[311397003,1705077049233,-500.0,0.00022783,2]
[311397005,1705077049243,-500.0,0.00022783,2]
[311397007,1705077049252,-500.0,0.00022783,2]
[311397009,1705077049262,-500.0,0.00022783,2]
[311397011,1705077049271,-500.0,0.00022783,2]
[311397013,1705077049280,-500.0,0.00022783,2]
[311397015,1705077049290,-500.0,0.00022783,2]
[311397017,1705077049299,-500.0,0.00022783,2]
[311397019,1705077049308,-500.0,0.00022783,2]
[311397021,1705077049318,-500.0,0.00022783,2]
[311397023,1705077049327,-500.0,0.00022783,2]
[311397024,1705077049337,-500.0,0.00022783,2]
[311397027,1705077049346,-500.0,0.00022783,2]
[311397028,1705077049355,-500.0,0.00022783,2]
[311397030,1705077049365,-500.0,0.00022783,2]
[311397032,1705077049374,-500.0,0.00022783,2]
[311397035,1705077049384,-500.0,0.00022783,2]
[311397036,1705077049395,-1107.53,0.00022783,2]
[311397038,1705077049404,-500.0,0.00022783,2]
[311397041,1705077049415,-300.0,0.00022783,2]
[311397043,1705077049424,-500.0,0.00022783,2]
[311397045,1705077049433,-608.63,0.00022783,2]
[311397047,1705077049443,-500.0,0.00022783,7]
[311397049,1705077049452,-500.0,0.00022783,2]
[311397051,1705077049461,-447.16,0.00022783,2]
[311397052,1705077049471,-500.0,0.00022783,2]
[311397055,1705077049480,-500.0,0.00022783,2]
[311397057,1705077049489,-500.0,0.00022783,2]
[311397059,1705077049498,-500.0,0.00022783,2]
[311397061,1705077049507,-500.0,0.00022783,2]
[311397063,1705077049516,-500.0,0.00022783,2]
[311397064,1705077049525,-500.0,0.00022783,2]
[311397067,1705077049538,-565.8,0.00022783,2]
[311397068,1705077049546,-500.0,0.00022783,2]
[311397070,1705077049556,-500.0,0.00022783,2]
[311397073,1705077049565,-500.0,0.00022783,2]
[311397074,1705077049575,-345.5454561,0.00022783,2]
[311397077,1705077049585,-500.0,0.00022783,2]
[311397079,1705077049595,-500.0,0.00022783,2]
[311397081,1705077049604,-500.0,0.00022783,2]
[311397083,1705077049613,-500.0,0.00022783,2]
[311397085,1705077049622,-523.56,0.00022783,2]
[311397087,1705077049631,-594.07,0.00022783,2]
[311397089,1705077049642,-1120.5,0.00022783,2]
[311397091,1705077049651,-571.6,0.00022783,2]
[311397093,1705077049660,-500.0,0.00022783,2]
[311397095,1705077049668,-500.0,0.00022783,2]
[311397097,1705077049677,-500.0,0.00022783,2]
[311397099,1705077049686,-500.0,0.00022783,2]
[311397101,1705077049695,-271.13481289,0.00022783,2]
[311397103,1705077049704,-500.0,0.00022783,2]
[311397105,1705077049713,-500.0,0.00022783,2]
[311397107,1705077049722,-500.0,0.00022783,2]
[311397109,1705077049731,-97.58261016,0.00022783,2]
[311397111,1705077049744,-431.32518773,0.00022783,2]
[311397113,1705077049753,-500.0,0.00022783,2]
[311397115,1705077049762,-82.03181227,0.00022783,2]
[311397117,1705077049773,-417.96818773,0.00022783,2]
[311397119,1705077049782,-500.0,0.00022783,2]
[311397121,1705077049791,-992.52,0.00022783,2]
[311397123,1705077049800,-605.97,0.00022783,2]
[311397125,1705077049809,-121.37272594,0.00022783,2]
[311397140,1705077049936,-1334.25292,0.00022783,2]
[311397149,1705077050013,-19.29435406,0.00022783,2]
[311397151,1705077050023,-4177.28,0.00022783,2]
[311397153,1705077050032,-500.0,0.00022783,2]
[311397155,1705077050041,-500.0,0.00022783,2]
[311397157,1705077050051,-500.0,0.00022783,2]
[311397159,1705077050060,-500.0,0.00022783,2]
[311397161,1705077050069,-1872.87,0.00022783,2]
[311397163,1705077050080,-500.0,0.00022783,2]
[311397165,1705077050090,-500.0,0.00022783,2]
[311397167,1705077050099,-500.0,0.00022783,2]
[311397169,1705077050108,-500.0,0.00022783,2]
[311397171,1705077050118,-1357.01,0.00022783,2]
[311397173,1705077050128,-10644.17,0.00022783,2]
[311397175,1705077050137,-500.0,0.00022783,2]
[311397177,1705077050148,-150.0,0.00022783,2]
[311397178,1705077050158,-500.0,0.00022783,2]
[311397179,1705077050167,-500.0,0.00022783,2]
[311397180,1705077050177,-500.0,0.00022783,2]
[311397181,1705077050186,-4961.7,0.00022783,2]
[311397182,1705077050195,-933.63,0.00022783,2]
[311397183,1705077050205,-500.0,0.00022783,2]
[311397184,1705077050214,-516.30814319,0.00022783,2]
[311397185,1705077050223,-500.0,0.00022783,2]
[311397187,1705077050233,-636.31,0.00022783,2]
[311397188,1705077050242,-500.0,0.00022783,2]
[311397190,1705077050252,-500.0,0.00022783,2]
[311397193,1705077050261,-1195.27,0.00022783,2]
[311397194,1705077050271,-1808.5,0.00022783,2]
[311397197,1705077050281,-500.0,0.00022783,2]
[311397198,1705077050291,-1852.8,0.00022783,2]
[311397201,1705077050301,-3071.92,0.00022783,2]
[311397202,1705077050310,-500.0,0.00022783,2]
[311397205,1705077050320,-2545.58,0.00022783,2]
[311397206,1705077050330,-500.0,0.00022783,2]
[311397209,1705077050340,-500.0,0.00022783,2]
[311397210,1705077050350,-500.0,0.00022783,2]
[311397213,1705077050359,-500.0,0.00022783,2]
[311397215,1705077050369,-2126.07,0.00022783,2]
[311397216,1705077050379,-500.0,0.00022783,2]
[311397219,1705077050389,-877.7,0.00022783,2]
[311397221,1705077050398,-500.0,0.00022783,2]
[311397223,1705077050408,-1558.28,0.00022783,2]
[311397225,1705077050417,-500.0,0.00022783,2]
[311397227,1705077050427,-500.0,0.00022783,2]
[311397229,1705077050437,-3767.3,0.00022783,2]
[311397231,1705077050446,-1845.89,0.00022783,2]
[311397233,1705077050455,-669.67,0.00022783,2]
[311397235,1705077050464,-500.0,0.00022783,2]
[311397237,1705077050473,-2228.6,0.00022783,2]
[311397238,1705077050483,-500.0,0.00022783,2]
[311397241,1705077050493,-500.0,0.00022783,2]
[311397242,1705077050504,-500.0,0.00022783,2]
[311397244,1705077050514,-846.0,0.00022783,2]
[311397246,1705077050524,-2416.09,0.00022783,2]
[311397248,1705077050534,-13698.75,0.00022783,2]
[311397250,1705077050543,-1205.25,0.00022783,2]
[311397253,1705077050552,-500.0,0.00022783,2]
[311397255,1705077050562,-500.0,0.00022783,2]
[311397257,1705077050573,-3731.97,0.00022783,2]
[311397259,1705077050584,-500.0,0.00022783,2]
[311397260,1705077050597,-500.0,0.00022783,2]
[311397263,1705077050606,-812.57,0.00022783,2]
[311397265,1705077050616,-500.0,0.00022783,2]
[311397266,1705077050626,-500.0,0.00022783,2]
[311397269,1705077050637,-500.0,0.00022783,2]
[311397271,1705077050648,-2269.52,0.00022783,2]
[311397273,1705077050658,-1615.37,0.00022783,2]
[311397275,1705077050668,-500.0,0.00022783,2]
[311397277,1705077050677,-500.0,0.00022783,2]
[311397279,1705077050688,-946.07,0.00022783,2]
[311397281,1705077050697,-500.0,0.00022783,2]
[311397283,1705077050706,-500.0,0.00022783,2]
[311397285,1705077050715,-500.0,0.00022783,2]
[311397287,1705077050724,-636.34,0.00022783,2]
[311397289,1705077050733,-500.0,0.00022783,2]
[311397291,1705077050742,-656.56,0.00022783,2]
[311397293,1705077050752,-579.11,0.00022783,2]
[311397295,1705077050761,-500.0,0.00022784,2]
[311397297,1705077050771,-500.0,0.00022784,2]
[311397299,1705077050781,-500.0,0.00022784,2]
[311397301,1705077050791,-500.0,0.00022784,2]
[311397303,1705077050800,-500.0,0.00022784,2]
[311397305,1705077050810,-500.0,0.00022784,2]
[311397307,1705077050819,-500.0,0.00022784,2]
[311397309,1705077050828,-500.0,0.00022784,2]
[311397311,1705077050837,-600.96,0.00022784,2]
[311397313,1705077050846,-500.0,0.00022784,2]
[311397315,1705077050855,-500.0,0.00022784,2]
[311397317,1705077050864,-500.0,0.00022784,2]
[311397319,1705077050873,-500.0,0.00022784,2]
[311397321,1705077050882,-500.0,0.00022784,2]
[311397323,1705077050893,-500.0,0.00022784,2]
[311397325,1705077050902,-500.0,0.00022784,2]
[311397327,1705077050911,-500.0,0.00022784,2]
[311397329,1705077050920,-571.62,0.00022784,2]
[311397331,1705077050930,-500.0,0.00022784,2]
[311397333,1705077050939,-500.0,0.00022784,2]
[311397335,1705077050948,-1417.94,0.00022784,2]
[311397337,1705077050957,-500.0,0.00022784,2]
[311397355,1705077051109,-500.0,0.00022784,2]
[311397357,1705077051120,-500.0,0.00022784,2]
[311397359,1705077051129,-500.0,0.00022784,2]
[311397361,1705077051138,-965.53,0.00022784,2]
[311397363,1705077051149,-2036.95,0.00022784,2]
[311397365,1705077051159,-500.0,0.00022784,2]
[311397367,1705077051168,-500.0,0.00022784,2]
[311397370,1705077051177,-500.0,0.00022784,2]
[311397372,1705077051187,-500.0,0.00022784,2]